{"text_format":"3","workbook":"xlsx","n_sheets":4,"sheets":["Mulai","Pengeluaran","Pendapatan","Ringkasan Laba-Rugi"],"not_rendered":{"charts":1},"read":"whole","date_system":"1900"}

{"sheet":"Mulai","index":0,"n_rows":8,"n_cols":2,"rows_kept":8}
[null,"TENTANG TEMPLAT INI"]
[null,"Gunakan buku kerja Anggaran Acara ini untuk mencatat Pengeluaran yang dikeluarkan dan Pendapatan yang didapatkan dari acara."]
[null,"Isi Nama Acara dan masukkan detail dalam tabel di lembar kerja Pengeluaran dan lembar kerja Pendapatan."]
[null,"Total Pengeluaran dan Total Pendapatan dihitung secara otomatis."]
[null,"Ringkasan Laba & Rugi serta Bagan diperbarui secara otomatis dalam lembar kerja Ringkasan Laba-Rugi."]
[null,"Catatan: "]
[null,"Instruksi tambahan telah tersedia di kolom A dalam setiap lembar kerja. Teks ini sengaja disembunyikan. Untuk menghapus teks, pilih kolom A, lalu pilih HAPUS. Untuk memperlihatkan teks, pilih kolom A, lalu ubah warna font."]
[null,"Untuk mempelajari selengkapnya tentang tabel, tekan SHIFT lalu F10 dalam tabel, pilih opsi TABEL, lalu pilih TEKS ALTERNATIF."]

{"sheet":"Pengeluaran","index":1,"n_rows":32,"n_cols":8,"rows_kept":32,"merged":[[0,1,0,4],[2,1,3,1]]}
["Masukkan Estimasi pengeluaran dan pengeluaran Aktual untuk setiap kategori dalam tabel masing-masing dalam lembar kerja ini, dan Nama Acara dalam sel D1 untuk mengustomisasi judul lembar kerja ini dan yang lain. Subjudul lembar kerja ini berada di sel H1. Instruksi bermanfaat tentang cara menggunakan lembar kerja ada pada sel-sel dalam kolom ini. Instruksi berikutnya berada dalam sel A3.","Anggaran Acara untuk Nama Acara",{"$nulls":5},"PENGELUARAN"]
[]
["Label Total Pengeluaran berada dalam sel di sebelah kanan, label Estimasi di sel G3, dan Aktual di H3.","TOTAL PENGELUARAN",{"$nulls":4},"Estimasi","Aktual"]
["Total Estimasi Pengeluaran di G4 dan Total Pengeluaran Aktual di H4 dihitung secara otomatis. Instruksi berikutnya berada dalam sel A6.",{"$nulls":5},{"$f":"SUM(C11,C19,C25,C32,G11,G19,G24)","v":{"v":882,"d":"Rp882.00"}},{"$f":"SUM(D11,D19,D25,D32,H11,H19,H24)","v":{"v":333,"d":"Rp333.00"}}]
[]
["Masukkan Pengeluaran Lokasi di tabel yang dimulai dari sel di sebelah kanan dan Pengeluaran Makanan Ringan dalam tabel yang dimulai dari sel F6. Instruksi berikutnya berada dalam sel A13.","Lokasi","Estimasi","Aktual",null,"Makanan Ringan","Estimasi","Aktual"]
[null,"Biaya ruangan dan aula",{"v":500,"d":"Rp500.00"},null,null,"Makanan"]
[null,"Staf lokasi",{"$nulls":3},"Minuman",{"v":20,"d":"Rp20.00"}]
[null,"Peralatan",{"$nulls":3},"Taplak",null,{"v":20,"d":"Rp20.00"}]
[null,"Meja dan kursi",{"$nulls":3},"Staf dan tip"]
[null,"Total",{"$f":"SUBTOTAL(109,PengeluaranLokasi[Estimasi])","v":{"v":500,"d":"Rp500.00"}},{"$f":"SUBTOTAL(109,PengeluaranLokasi[Aktual])","v":{"v":0,"d":"Rp0.00"}},null,"Total",{"$f":"SUBTOTAL(109,PengeluaranMakananRingan[Estimasi])","v":{"v":20,"d":"Rp20.00"}},{"$f":"SUBTOTAL(109,PengeluaranMakananRingan[Aktual])","v":{"v":20,"d":"Rp20.00"}}]
[]
["Masukkan Pengeluaran Dekorasi dalam tabel yang dimulai dari sel di sebelah kanan dan Pengeluaran Program di tabel yang dimulai di sel F13. Instruksi berikutnya berada dalam sel A21.","Dekorasi","Estimasi","Aktual",null,"Program","Estimasi","Aktual"]
[null,"Bunga",{"v":200,"d":"Rp200.00"},{"v":300,"d":"Rp300.00"},null,"Hiburan"]
[null,"Lilin",{"$nulls":3},"Pembicara",{"v":30,"d":"Rp30.00"}]
[null,"Lampu",{"$nulls":3},"Perjalanan"]
[null,"Balon",{"$nulls":3},"Hotel"]
[null,"Perlengkapan kertas",{"$nulls":3},"Lainnya"]
[null,"Total",{"$f":"SUBTOTAL(109,PengeluaranDekorasi[Estimasi])","v":{"v":200,"d":"Rp200.00"}},{"$f":"SUBTOTAL(109,PengeluaranDekorasi[Aktual])","v":{"v":300,"d":"Rp300.00"}},null,"Total",{"$f":"SUBTOTAL(109,PengeluaranProgram[Estimasi])","v":{"v":30,"d":"Rp30.00"}},{"$f":"SUBTOTAL(109,PengeluaranProgram[Aktual])","v":{"v":0,"d":"Rp0.00"}}]
[]
["Masukkan Pengeluaran Publikasi dalam tabel yang dimulai dari sel di sebelah kanan dan Pengeluaran Hadiah di tabel yang dimulai di sel F21. Instruksi berikutnya berada dalam sel A27","Publikasi","Estimasi","Aktual",null,"Hadiah","Estimasi","Aktual"]
[null,"Karya grafis",{"$nulls":3},"Pita/Plakat/Piala"]
[null,"Fotokopi/Percetakan",{"v":20,"d":"Rp20.00"},null,null,"Hadiah",{"v":100,"d":"Rp100.00"}]
[null,"Ongkos kirim",{"$nulls":3},"Total",{"$f":"SUBTOTAL(109,PengeluaranHadiah[Estimasi])","v":{"v":100,"d":"Rp100.00"}},{"$f":"SUBTOTAL(109,PengeluaranHadiah[Aktual])","v":{"v":0,"d":"Rp0.00"}}]
[null,"Total",{"$f":"SUBTOTAL(109,PengeluaranPublikasi[Estimasi])","v":{"v":20,"d":"Rp20.00"}},{"$f":"SUBTOTAL(109,PengeluaranPublikasi[Aktual])","v":{"v":0,"d":"Rp0.00"}}]
[]
["Masukkan Pengeluaran Lain-lain dalam tabel yang dimulai dari sel di sebelah kanan.","Lain-lain","Estimasi","Aktual"]
[null,"Telepon",null,{"v":13,"d":"Rp13.00"}]
[null,"Transportasi",{"v":12,"d":"Rp12.00"}]
[null,"Perlengkapan alat tulis"]
[null,"Layanan faks"]
[null,"Total",{"$f":"SUBTOTAL(109,PengeluaranLain_lain[Estimasi])","v":{"v":12,"d":"Rp12.00"}},{"$f":"SUBTOTAL(109,PengeluaranLain_lain[Aktual])","v":{"v":13,"d":"Rp13.00"}}]

{"sheet":"Pendapatan","index":2,"n_rows":29,"n_cols":7,"rows_kept":29,"merged":[[0,1,0,3],[2,1,3,1]]}
["Masukkan Estimasi pendapatan dan pendapatan Aktual dari setiap kategori dalam tabel masing-masing dalam lembar kerja ini. Judul lembar kerja ini diperbarui secara otomatis dalam sel di sebelah kanan. Subjudul berada dalam sel G1. Instruksi bermanfaat tentang cara menggunakan lembar kerja ada pada sel-sel dalam kolom ini. Instruksi berikutnya berada dalam sel A3.",{"$f":"Pengeluaran!B1","v":"Anggaran Acara untuk Nama Acara"},{"$nulls":4},"PENDAPATAN"]
[]
["Label Total Pendapatan berada dalam sel di sebelah kanan, label Estimasi di sel F3, dan Aktual di G3.","TOTAL PENDAPATAN",{"$nulls":3},"Estimasi","Aktual"]
["Total Estimasi Pendapatan dihitung secara otomatis dalam sel F4 dan Total Pendapatan Aktual di G4.",{"$nulls":4},{"$f":"SUM(TiketMasuk[[#Totals],[Estimasi Pendapatan]],IklandalamProgram[[#Totals],[Estimasi Pendapatan]],PesertaPameranDanVendor[[#Totals],[Estimasi Pendapatan]],PenjualanItem[[#Totals],[Estimasi Pendapatan]])","v":{"v":1936,"d":"Rp1,936.00"}},{"$f":"SUM(TiketMasuk[[#Totals],[Pendapatan Aktual]],IklandalamProgram[[#Totals],[Pendapatan Aktual]],PesertaPameranDanVendor[[#Totals],[Pendapatan Aktual]],PenjualanItem[[#Totals],[Pendapatan Aktual]])","v":{"v":1831,"d":"Rp1,831.00"}}]
["Label Tiket Masuk berada dalam sel di sebelah kanan.","TIKET MASUK"]
["Masukkan jumlah Estimasi tiket masuk dan tiket masuk Aktual dengan harga tiket dalam tabel yang dimulai dalam sel di sebelah kanan. Estimasi Pendapatan dan Pendapatan Aktual dari Tiket Masuk dihitung secara otomatis. Instruksi berikutnya berada dalam sel A11.","Jumlah Estimasi","Jumlah Aktual","Tipe","Harga","Estimasi Pendapatan","Pendapatan Aktual"]
[null,300,278,"Dewasa @",{"v":5,"d":"Rp5.00"},{"$f":"B7*E7","v":{"v":1500,"d":"Rp1,500.00"}},{"$f":"C7*E7","v":{"v":1390,"d":"Rp1,390.00"}}]
[null,197,195,"Anak-anak @",{"v":2,"d":"Rp2.00"},{"$f":"B8*E8","v":{"v":394,"d":"Rp394.00"}},{"$f":"C8*E8","v":{"v":390,"d":"Rp390.00"}}]
[null,42,51,"Lainnya @",{"v":1,"d":"Rp1.00"},{"$f":"B9*E9","v":{"v":42,"d":"Rp42.00"}},{"$f":"C9*E9","v":{"v":51,"d":"Rp51.00"}}]
[null,"Total",{"$nulls":3},{"$f":"SUBTOTAL(109,TiketMasuk[Estimasi Pendapatan])","v":{"v":1936,"d":"Rp1,936.00"}},{"$f":"SUBTOTAL(109,TiketMasuk[Pendapatan Aktual])","v":{"v":1831,"d":"Rp1,831.00"}}]
["Label Iklan dalam Program berada dalam sel di sebelah kanan.","IKLAN DALAM PROGRAM"]
["Masukkan jumlah Estimasi Iklan dan jumlah Iklan Aktual di Program dan tarif Iklan dalam tabel yang dimulai dalam sel di sebelah kanan. Estimasi Pendapatan dan Pendapatan Aktual dari Iklan dihitung secara otomatis. Instruksi berikutnya berada dalam sel A17.","Jumlah Estimasi","Jumlah Aktual","Tipe","Harga","Estimasi Pendapatan","Pendapatan Aktual"]
[null,12,null,"Sampul @",null,{"$f":"B13*E13","v":{"v":0,"d":"Rp0.00"}},{"$f":"C13*E13","v":{"v":0,"d":"Rp0.00"}}]
[null,null,158,"Setengah halaman @",null,{"$f":"B14*E14","v":{"v":0,"d":"Rp0.00"}},{"$f":"C14*E14","v":{"v":0,"d":"Rp0.00"}}]
[null,4,null,"Seperempat halaman @",null,{"$f":"B15*E15","v":{"v":0,"d":"Rp0.00"}},{"$f":"C15*E15","v":{"v":0,"d":"Rp0.00"}}]
[null,"Total",{"$nulls":3},{"$f":"SUBTOTAL(109,IklandalamProgram[Estimasi Pendapatan])","v":{"v":0,"d":"Rp0.00"}},{"$f":"SUBTOTAL(109,IklandalamProgram[Pendapatan Aktual])","v":{"v":0,"d":"Rp0.00"}}]
["Label Peserta Pameran atau Vendor berada dalam sel di sebelah kanan.","PESERTA PAMERAN/VENDOR"]
["Masukkan jumlah Estimasi peserta pameran dan vendor, jumlah Aktual peserta pameran dan vendor, serta tarif stan dalam tabel yang dimulai dari sel di sebelah kanan. Estimasi Pendapatan dan Pendapatan Aktual dihitung secara otomatis. Instruksi berikutnya berada dalam sel A23.","Jumlah Estimasi","Jumlah Aktual","Tipe","Harga","Estimasi Pendapatan","Pendapatan Aktual"]
[null,23,null,"Stan besar @",null,{"$f":"B19*E19","v":{"v":0,"d":"Rp0.00"}},{"$f":"C19*E19","v":{"v":0,"d":"Rp0.00"}}]
[null,354,null,"Stan sedang @",null,{"$f":"B20*E20","v":{"v":0,"d":"Rp0.00"}},{"$f":"C20*E20","v":{"v":0,"d":"Rp0.00"}}]
[null,56,null,"Stan kecil @",null,{"$f":"B21*E21","v":{"v":0,"d":"Rp0.00"}},{"$f":"C21*E21","v":{"v":0,"d":"Rp0.00"}}]
[null,"Total",{"$nulls":3},{"$f":"SUBTOTAL(109,PesertaPameranDanVendor[Estimasi Pendapatan])","v":{"v":0,"d":"Rp0.00"}},{"$f":"SUBTOTAL(109,PesertaPameranDanVendor[Pendapatan Aktual])","v":{"v":0,"d":"Rp0.00"}}]
["Label Penjualan item berada dalam sel di sebelah kanan.","PENJUALAN ITEM"]
["Masukkan jumlah Estimasi item yang terjual, jumlah Aktual item yang terjual, dan tarif item dalam tabel yang dimulai dari sel di sebelah kanan. Estimasi Pendapatan dan Pendapatan Aktual dihitung secara otomatis.","Jumlah Estimasi","Jumlah Aktual","Tipe","Harga","Estimasi Pendapatan","Pendapatan Aktual"]
[{"$nulls":3},"Item @",null,{"$f":"B25*E25","v":{"v":0,"d":"Rp0.00"}},{"$f":"C25*E25","v":{"v":0,"d":"Rp0.00"}}]
[null,123,null,"Item @",null,{"$f":"B26*E26","v":{"v":0,"d":"Rp0.00"}},{"$f":"C26*E26","v":{"v":0,"d":"Rp0.00"}}]
[{"$nulls":3},"Item @",null,{"$f":"B27*E27","v":{"v":0,"d":"Rp0.00"}},{"$f":"C27*E27","v":{"v":0,"d":"Rp0.00"}}]
[null,13,null,"Item @",null,{"$f":"B28*E28","v":{"v":0,"d":"Rp0.00"}},{"$f":"C28*E28","v":{"v":0,"d":"Rp0.00"}}]
[null,"Total",{"$nulls":3},{"$f":"SUBTOTAL(109,PenjualanItem[Estimasi Pendapatan])","v":{"v":0,"d":"Rp0.00"}},{"$f":"SUBTOTAL(109,PenjualanItem[Pendapatan Aktual])","v":{"v":0,"d":"Rp0.00"}}]

{"sheet":"Ringkasan Laba-Rugi","index":3,"n_rows":8,"n_cols":7,"rows_kept":8,"merged":[[0,1,0,3],[2,4,11,6]]}
["Ringkasan Laba & Rugi serta Bagan yang memperlihatkan Total Pendapatan dan Pengeluaran diperbarui secara otomatis dalam lembar kerja ini. Judul lembar kerja ini diperbarui secara otomatis dalam sel di sebelah kanan. Subjudul berada dalam sel G1 dan G2. Instruksi bermanfaat tentang cara menggunakan lembar kerja ada pada sel-sel dalam kolom ini. Instruksi berikutnya berada dalam sel A3.",{"$f":"Pengeluaran!B1","v":"Anggaran Acara untuk Nama Acara"},{"$nulls":4},"LABA "]
[{"$nulls":6},"Ringkasan Rugi"]
["Bagan batang yang membandingkan Estimasi Pendapatan dan Pengeluaran serta Pendapatan dan Pengeluaran Aktual berada dalam sel E3.",{"$nulls":3},"Bagan batang yang memperlihatkan perbandingan Estimasi Pendapatan dan Pengeluaran serta Pendapatan dan Pengeluaran Aktual berada dalam sel ini."]
["Tabel Ringkasan yang dimulai dari sel di sebelah kanan diperbarui secara otomatis. Instruksi berikutnya berada dalam sel A8."," Total","Estimasi","Aktual"]
[null,"Total pendapatan",{"$f":"Pendapatan!F4","v":{"v":1936,"d":"Rp1,936.00"}},{"$f":"Pendapatan!G4","v":{"v":1831,"d":"Rp1,831.00"}}]
[null,"Total pengeluaran",{"$f":"Pengeluaran!G4","v":{"v":882,"d":"Rp882.00"}},{"$f":"Pengeluaran!H4","v":{"v":333,"d":"Rp333.00"}}]
[]
["Total Estimasi laba atau rugi dihitung secara otomatis dalam sel C8 dan Total laba atau rugi Aktual di sel D8.","Total laba              (atau rugi)",{"$f":"C5-C6","v":{"v":1054,"d":"Rp1,054.00"}},{"$f":"D5-D6","v":{"v":1498,"d":"Rp1,498.00"}}]